[Event "Titled Tuesday Blitz November 01 Late 2022"]
[White "Goltseva, Ekaterina"]
[Black "Brown, Andrew"]
[WhiteFideId "24173770"]
[BlackFideId "3206513"]
[WhiteElo "2200"]
[BlackElo "2245"]
[Result "0-1"]
[Round "05"]
[TimeControl "180+1"]
[Date "2022.11.02"]
[WhiteClock "0:00:40"]
[BlackClock "0:00:11"]

1. d4 {[%clk 0:03:00]}  g6 {[%clk 0:03:00]} 2. e4 {[%clk 0:02:57]}  Bg7 {[%clk 0:03:00]} 3. Nc3 {[%clk 0:02:58]}  c6 {[%clk 0:02:59]} 4. Be3 {[%clk 0:02:54]}  d5 {[%clk 0:02:59]} 5. e5 {[%clk 0:02:54]}  h5 {[%clk 0:02:57]} 6. Qd2 {[%clk 0:02:52]}  Nh6 {[%clk 0:02:57]} 7. Nf3 {[%clk 0:02:47]}  Nf5 {[%clk 0:02:51]} 8. Bg5 {[%clk 0:02:46]}  Nd7 {[%clk 0:02:40]} 9. Bd3 {[%clk 0:02:42]}  Nf8 {[%clk 0:02:40]} 10. O-O-O {[%clk 0:02:39]}  Ne6 {[%clk 0:02:18]} 11. Bxf5 {[%clk 0:02:38]}  gxf5 {[%clk 0:02:18]} 12. h4 {[%clk 0:02:34]}  Nxg5 {[%clk 0:01:58]} 13. hxg5 {[%clk 0:02:28]}  b5 {[%clk 0:01:50]} 14. Kb1 {[%clk 0:02:17]}  a5 {[%clk 0:01:47]} 15. Ne2 {[%clk 0:02:13]}  b4 {[%clk 0:01:40]} 16. Nf4 {[%clk 0:02:11]}  Qb6 {[%clk 0:01:26]} 17. Nxh5 {[%clk 0:02:09]}  Bf8 {[%clk 0:01:23]} 18. Nf6+ {[%clk 0:02:06]}  exf6 {[%clk 0:01:23]} 19. Rxh8 {[%clk 0:02:02]}  fxe5 {[%clk 0:01:19]} 20. Nxe5 {[%clk 0:02:01]}  Be6 {[%clk 0:01:18]} 21. g6 {[%clk 0:01:57]}  fxg6 {[%clk 0:00:35]} 22. Nxg6 {[%clk 0:01:54]}  Kf7 {[%clk 0:00:33]} 23. Ne5+ {[%clk 0:01:46]}  Ke7 {[%clk 0:00:28]} 24. Ng6+ {[%clk 0:01:35]}  Kf7 {[%clk 0:00:28]} 25. Rxf8+ {[%clk 0:01:35]}  Rxf8 {[%clk 0:00:27]} 26. Nxf8 {[%clk 0:01:36]}  Kxf8 {[%clk 0:00:27]} 27. Qh6+ {[%clk 0:01:36]}  Kf7 {[%clk 0:00:24]} 28. Re1 {[%clk 0:01:32]}  c5 {[%clk 0:00:16]} 29. dxc5 {[%clk 0:01:31]}  Qc6 {[%clk 0:00:16]} 30. Qh7+ {[%clk 0:01:30]}  Kf6 {[%clk 0:00:17]} 31. f4 {[%clk 0:01:24]}  d4 {[%clk 0:00:15]} 32. g4 {[%clk 0:01:14]}  fxg4 {[%clk 0:00:09]} 33. Qh6+ {[%clk 0:01:14]}  Kf7 {[%clk 0:00:09]} 34. f5 {[%clk 0:01:08]}  Bxa2+ {[%clk 0:00:09]} 35. Kxa2 {[%clk 0:01:05]}  Qxh6 {[%clk 0:00:09]} 36. Re6 {[%clk 0:00:57]}  Qh1 {[%clk 0:00:09]} 37. c6 {[%clk 0:00:50]}  Qd5+ {[%clk 0:00:09]} 38. b3 {[%clk 0:00:50]}  g3 {[%clk 0:00:10]} 39. Rg6 {[%clk 0:00:45]}  g2 {[%clk 0:00:09]} 40. c7 {[%clk 0:00:44]}  Qc5 {[%clk 0:00:06]} 41. Rxg2 {[%clk 0:00:44]}  Qxc7 {[%clk 0:00:07]} 42. Rd2 {[%clk 0:00:43]}  Qc3 {[%clk 0:00:06]} 43. Rf2 {[%clk 0:00:40]}  Kf6 {[%clk 0:00:07]} 44. Kb1 {[%clk 0:00:40]}  d3 {[%clk 0:00:07]} 45. cxd3 {[%clk 0:00:37]}  Qxb3+ {[%clk 0:00:07]} 46. Rb2 {[%clk 0:00:37]}  Qxd3+ {[%clk 0:00:07]} 47. Ka2 {[%clk 0:00:37]}  Kxf5 {[%clk 0:00:06]} 48. Rb3 {[%clk 0:00:37]}  Qc4 {[%clk 0:00:06]} 49. Kb2 {[%clk 0:00:37]}  Qe2+ {[%clk 0:00:06]} 50. Kb1 {[%clk 0:00:37]}  Ke4 {[%clk 0:00:06]} 51. Rb2 {[%clk 0:00:37]}  Qxb2+ {[%clk 0:00:05]} 52. Kxb2 {[%clk 0:00:36]}  Kd4 {[%clk 0:00:06]} 53. Kb3 {[%clk 0:00:37]}  Kc5 {[%clk 0:00:07]} 54. Ka4 {[%clk 0:00:37]}  Kc4 {[%clk 0:00:07]} 55. Kxa5 {[%clk 0:00:38]}  b3 {[%clk 0:00:08]} 56. Kb6 {[%clk 0:00:37]}  b2 {[%clk 0:00:09]} 57. Kc7 {[%clk 0:00:38]}  b1=Q {[%clk 0:00:09]} 58. Kd7 {[%clk 0:00:39]}  Qe4 {[%clk 0:00:10]} 59. Kd8 {[%clk 0:00:39]}  Kb5 {[%clk 0:00:11]} 60. Kc8 {[%clk 0:00:40]}  Kc6 {[%clk 0:00:10]} 61. Kb8 {[%clk 0:00:40]}  Qa4 {[%clk 0:00:10]} 62. Kc8 {[%clk 0:00:40]}  Qa8# {[%clk 0:00:11]} 0-1


[Site "https://www.chess.com"]

[Event "Titled Tuesday Blitz November 01 Late 2022"]
[White "Grot, Blazej"]
[Black "Burke, Paul"]
[WhiteFideId "21835845"]
[BlackFideId "2605767"]
[WhiteElo "1739"]
[BlackElo "1870"]
[Result "1-0"]
[Round "05"]
[TimeControl "180+1"]
[Date "2022.11.02"]
[WhiteClock "0:00:04"]
[BlackClock "0:00:01"]

1. e4 {[%clk 0:03:00]}  e5 {[%clk 0:02:59]} 2. Nf3 {[%clk 0:03:00]}  Nc6 {[%clk 0:02:59]} 3. Bc4 {[%clk 0:03:00]}  Be7 {[%clk 0:02:59]} 4. d4 {[%clk 0:02:59]}  exd4 {[%clk 0:02:58]} 5. Nxd4 {[%clk 0:02:56]}  d6 {[%clk 0:02:58]} 6. Nxc6 {[%clk 0:02:54]}  bxc6 {[%clk 0:02:56]} 7. O-O {[%clk 0:02:53]}  Nf6 {[%clk 0:02:56]} 8. Nc3 {[%clk 0:02:49]}  O-O {[%clk 0:02:54]} 9. Re1 {[%clk 0:02:45]}  Be6 {[%clk 0:02:54]} 10. Bb3 {[%clk 0:02:43]}  d5 {[%clk 0:02:48]} 11. exd5 {[%clk 0:02:41]}  cxd5 {[%clk 0:02:48]} 12. Bg5 {[%clk 0:02:40]}  c6 {[%clk 0:02:42]} 13. Ne2 {[%clk 0:02:29]}  Ne4 {[%clk 0:02:40]} 14. Bxe7 {[%clk 0:02:29]}  Qxe7 {[%clk 0:02:40]} 15. Nd4 {[%clk 0:02:29]}  a5 {[%clk 0:01:57]} 16. Nxc6 {[%clk 0:02:07]}  Qc5 {[%clk 0:01:55]} 17. Ba4 {[%clk 0:00:59]}  Qxf2+ {[%clk 0:01:48]} 18. Kh1 {[%clk 0:00:59]}  Qh4 {[%clk 0:01:46]} 19. Qf3 {[%clk 0:00:51]}  Bg4 {[%clk 0:01:42]} 20. Qf4 {[%clk 0:00:37]}  g5 {[%clk 0:01:38]} 21. Ne7+ {[%clk 0:00:34]}  Kh8 {[%clk 0:01:28]} 22. Qe5+ {[%clk 0:00:20]}  f6 {[%clk 0:01:23]} 23. Qxd5 {[%clk 0:00:20]}  Nf2+ {[%clk 0:01:03]} 24. Kg1 {[%clk 0:00:20]}  Rad8 {[%clk 0:01:01]} 25. Qc5 {[%clk 0:00:15]}  Nh3+ {[%clk 0:00:50]} 26. gxh3 {[%clk 0:00:13]}  Bxh3 {[%clk 0:00:50]} 27. Qf2 {[%clk 0:00:09]}  Qg4+ {[%clk 0:00:41]} 28. Qg3 {[%clk 0:00:09]}  Qd4+ {[%clk 0:00:34]} 29. Kh1 {[%clk 0:00:08]}  Qxa4 {[%clk 0:00:33]} 30. Qxh3 {[%clk 0:00:08]}  Qe8 {[%clk 0:00:12]} 31. Nf5 {[%clk 0:00:05]}  Qc6+ {[%clk 0:00:11]} 32. Qg2 {[%clk 0:00:04]}  Qxg2+ {[%clk 0:00:10]} 33. Kxg2 {[%clk 0:00:04]}  Rd2+ {[%clk 0:00:10]} 34. Kf3 {[%clk 0:00:04]}  Rxc2 {[%clk 0:00:10]} 35. Re2 {[%clk 0:00:05]}  Rfc8 {[%clk 0:00:07]} 36. Rae1 {[%clk 0:00:03]}  h5 {[%clk 0:00:04]} 37. Rxc2 {[%clk 0:00:04]}  Rxc2 {[%clk 0:00:04]} 38. Re2 {[%clk 0:00:04]}  Rc5 {[%clk 0:00:02]} 39. Nd4 {[%clk 0:00:04]}  Rd5 {[%clk 0:00:02]} 40. Rd2 {[%clk 0:00:04]}  g4+ {[%clk 0:00:01]} 41. Ke4 {[%clk 0:00:04]}  Re5+ {[%clk 0:00:01]} 42. Kf4 {[%clk 0:00:04]} 1-0


[Site "https://www.chess.com"]

[Event "Titled Tuesday Blitz November 01 Late 2022"]
[White "Harvey, Marcus R"]
[Black "Kanyamarala, Tarun"]
[WhiteFideId "400092"]
[BlackFideId "45004714"]
[WhiteElo "2457"]
[BlackElo "2307"]
[Result "1/2-1/2"]
[Round "05"]
[TimeControl "180+1"]
[Date "2022.11.02"]
[WhiteClock "0:00:12"]
[BlackClock "0:00:02"]

1. c4 {[%clk 0:03:00]}  e6 {[%clk 0:02:58]} 2. b3 {[%clk 0:02:54]}  d5 {[%clk 0:02:58]} 3. Bb2 {[%clk 0:02:54]}  d4 {[%clk 0:02:55]} 4. e3 {[%clk 0:02:54]}  c5 {[%clk 0:02:46]} 5. a3 {[%clk 0:02:49]}  Nc6 {[%clk 0:02:45]} 6. Nf3 {[%clk 0:02:49]}  e5 {[%clk 0:02:40]} 7. exd4 {[%clk 0:02:48]}  exd4 {[%clk 0:02:37]} 8. Bd3 {[%clk 0:02:46]}  Nf6 {[%clk 0:02:35]} 9. h3 {[%clk 0:02:45]}  Be7 {[%clk 0:02:27]} 10. O-O {[%clk 0:02:45]}  O-O {[%clk 0:02:27]} 11. Re1 {[%clk 0:02:42]}  b6 {[%clk 0:02:21]} 12. Bf1 {[%clk 0:02:26]}  Bb7 {[%clk 0:02:08]} 13. d3 {[%clk 0:02:27]}  Bd6 {[%clk 0:02:06]} 14. Nbd2 {[%clk 0:02:27]}  a5 {[%clk 0:01:55]} 15. Ng5 {[%clk 0:02:09]}  Bc7 {[%clk 0:01:41]} 16. g3 {[%clk 0:02:02]}  h6 {[%clk 0:01:34]} 17. Ngf3 {[%clk 0:01:59]}  Ne7 {[%clk 0:01:23]} 18. Bg2 {[%clk 0:01:57]}  Nf5 {[%clk 0:01:20]} 19. Nf1 {[%clk 0:01:49]}  Ra7 {[%clk 0:01:12]} 20. Re2 {[%clk 0:01:38]}  Qa8 {[%clk 0:01:09]} 21. Ne1 {[%clk 0:01:39]}  Nh7 {[%clk 0:00:54]} 22. Bxb7 {[%clk 0:01:28]}  Qxb7 {[%clk 0:00:53]} 23. Bc1 {[%clk 0:01:19]}  Raa8 {[%clk 0:00:50]} 24. a4 {[%clk 0:01:16]}  Rad8 {[%clk 0:00:45]} 25. Raa2 {[%clk 0:01:16]}  Rd6 {[%clk 0:00:43]} 26. Bf4 {[%clk 0:01:06]}  Rg6 {[%clk 0:00:34]} 27. Bxc7 {[%clk 0:01:06]}  Qxc7 {[%clk 0:00:33]} 28. Nf3 {[%clk 0:01:06]}  Qb7 {[%clk 0:00:16]} 29. N1h2 {[%clk 0:00:56]}  Ng5 {[%clk 0:00:08]} 30. Nxg5 {[%clk 0:00:51]}  Rxg5 {[%clk 0:00:09]} 31. Re4 {[%clk 0:00:44]}  Nd6 {[%clk 0:00:07]} 32. Rg4 {[%clk 0:00:42]}  Rxg4 {[%clk 0:00:06]} 33. Nxg4 {[%clk 0:00:42]}  Re8 {[%clk 0:00:05]} 34. Re2 {[%clk 0:00:42]}  Qd7 {[%clk 0:00:05]} 35. Qe1 {[%clk 0:00:40]}  Rxe2 {[%clk 0:00:05]} 36. Qxe2 {[%clk 0:00:41]}  h5 {[%clk 0:00:05]} 37. Ne5 {[%clk 0:00:37]}  Qxh3 {[%clk 0:00:05]} 38. Qf3 {[%clk 0:00:35]}  Qe6 {[%clk 0:00:04]} 39. Qxh5 {[%clk 0:00:32]}  g6 {[%clk 0:00:03]} 40. Qg5 {[%clk 0:00:26]}  Nf5 {[%clk 0:00:02]} 41. Ng4 {[%clk 0:00:18]}  Kg7 {[%clk 0:00:02]} 42. Kg2 {[%clk 0:00:15]}  f6 {[%clk 0:00:02]} 43. Qf4 {[%clk 0:00:14]}  Qc6+ {[%clk 0:00:02]} 44. Kg1 {[%clk 0:00:14]}  Qd7 {[%clk 0:00:02]} 45. Nh2 {[%clk 0:00:13]}  Qe7 {[%clk 0:00:01]} 46. Nf3 {[%clk 0:00:13]}  Nd6 {[%clk 0:00:02]} 47. Kg2 {[%clk 0:00:13]}  Nf7 {[%clk 0:00:02]} 48. g4 {[%clk 0:00:11]}  Ne5 {[%clk 0:00:02]} 49. Nxe5 {[%clk 0:00:10]}  fxe5 {[%clk 0:00:02]} 50. Qe4 {[%clk 0:00:11]}  Kf6 {[%clk 0:00:02]} 51. Qc6+ {[%clk 0:00:08]}  Qe6 {[%clk 0:00:02]} 52. Qxe6+ {[%clk 0:00:08]}  Kxe6 {[%clk 0:00:02]} 53. Kf3 {[%clk 0:00:09]}  Kf6 {[%clk 0:00:02]} 54. Ke4 {[%clk 0:00:08]}  Ke6 {[%clk 0:00:02]} 55. f3 {[%clk 0:00:04]}  g5 {[%clk 0:00:01]} 56. f4 {[%clk 0:00:03]}  exf4 {[%clk 0:00:01]} 57. Kf3 {[%clk 0:00:04]}  Ke5 {[%clk 0:00:01]} 58. Ke2 {[%clk 0:00:05]}  Kf6 {[%clk 0:00:02]} 59. Kf3 {[%clk 0:00:05]}  Kg6 {[%clk 0:00:02]} 60. Kf2 {[%clk 0:00:06]}  Kg7 {[%clk 0:00:02]} 61. Kf3 {[%clk 0:00:07]}  Kf6 {[%clk 0:00:03]} 62. Ke4 {[%clk 0:00:08]}  Ke6 {[%clk 0:00:03]} 63. Kf3 {[%clk 0:00:09]}  Ke5 {[%clk 0:00:04]} 64. Kf2 {[%clk 0:00:10]}  Ke6 {[%clk 0:00:04]} 65. Ke2 {[%clk 0:00:10]}  Kf6 {[%clk 0:00:04]} 66. Kf3 {[%clk 0:00:11]}  Ke7 {[%clk 0:00:04]} 67. Kf2 {[%clk 0:00:11]}  Ke6 {[%clk 0:00:05]} 68. Kg2 {[%clk 0:00:12]}  Ke5 {[%clk 0:00:03]} 69. Kf3 {[%clk 0:00:12]}  Kf6 {[%clk 0:00:03]} 70. Ke4 {[%clk 0:00:12]}  Kg6 {[%clk 0:00:03]} 71. Kf3 {[%clk 0:00:12]}  Kg7 {[%clk 0:00:03]} 72. Kf2 {[%clk 0:00:13]}  Kf6 {[%clk 0:00:03]} 73. Ke2 {[%clk 0:00:13]}  Ke6 {[%clk 0:00:02]} 74. Kf3 {[%clk 0:00:12]} 1/2-1/2


[Site "https://www.chess.com"]

[Event "Titled Tuesday Blitz November 01 Late 2022"]
[White "Hoffmann, Asa"]
[Black "Marcolino, Daniel Mattos"]
[WhiteFideId "2001470"]
[BlackFideId "2106841"]
[WhiteElo "2117"]
[BlackElo "2071"]
[Result "1-0"]
[Round "05"]
[TimeControl "180+1"]
[Date "2022.11.02"]
[WhiteClock "0:00:35"]
[BlackClock "0:00:04"]

1. d4 {[%clk 0:02:49]}  Nf6 {[%clk 0:02:59]} 2. Bg5 {[%clk 0:02:48]}  d5 {[%clk 0:02:59]} 3. Nd2 {[%clk 0:02:47]}  Nbd7 {[%clk 0:02:58]} 4. e3 {[%clk 0:02:46]}  e6 {[%clk 0:02:56]} 5. f4 {[%clk 0:02:40]}  Be7 {[%clk 0:02:42]} 6. Bd3 {[%clk 0:02:39]}  c5 {[%clk 0:02:38]} 7. c3 {[%clk 0:02:38]}  O-O {[%clk 0:02:38]} 8. Ngf3 {[%clk 0:02:38]}  b6 {[%clk 0:02:34]} 9. Ne5 {[%clk 0:02:38]}  Bb7 {[%clk 0:02:32]} 10. O-O {[%clk 0:02:38]}  Qc7 {[%clk 0:02:17]} 11. Qf3 {[%clk 0:02:31]}  Bd6 {[%clk 0:02:05]} 12. Qh3 {[%clk 0:02:27]}  Ne4 {[%clk 0:02:00]} 13. Ndf3 {[%clk 0:02:18]}  Rae8 {[%clk 0:01:44]} 14. Rad1 {[%clk 0:02:03]}  f6 {[%clk 0:01:38]} 15. Nxd7 {[%clk 0:02:01]}  Qxd7 {[%clk 0:01:38]} 16. Bh4 {[%clk 0:01:56]}  Qc7 {[%clk 0:01:32]} 17. Bxe4 {[%clk 0:01:42]}  dxe4 {[%clk 0:01:31]} 18. Nd2 {[%clk 0:01:41]}  e5 {[%clk 0:01:18]} 19. fxe5 {[%clk 0:01:37]}  fxe5 {[%clk 0:01:17]} 20. Rxf8+ {[%clk 0:01:34]}  Rxf8 {[%clk 0:01:17]} 21. Rf1 {[%clk 0:01:31]}  Rxf1+ {[%clk 0:01:11]} 22. Nxf1 {[%clk 0:01:31]}  exd4 {[%clk 0:01:12]} 23. exd4 {[%clk 0:01:27]}  cxd4 {[%clk 0:01:12]} 24. cxd4 {[%clk 0:01:26]}  Bd5 {[%clk 0:00:52]} 25. b3 {[%clk 0:01:25]}  a5 {[%clk 0:00:41]} 26. Bg3 {[%clk 0:01:21]}  Bxg3 {[%clk 0:00:40]} 27. Qxg3 {[%clk 0:01:20]}  Qxg3 {[%clk 0:00:38]} 28. Nxg3 {[%clk 0:01:19]}  Kf7 {[%clk 0:00:32]} 29. Kf2 {[%clk 0:01:19]}  a4 {[%clk 0:00:31]} 30. bxa4 {[%clk 0:01:18]}  Bxa2 {[%clk 0:00:24]} 31. Nxe4 {[%clk 0:01:16]}  Ke6 {[%clk 0:00:20]} 32. Ke3 {[%clk 0:01:15]}  Bd5 {[%clk 0:00:18]} 33. g4 {[%clk 0:01:07]}  h6 {[%clk 0:00:17]} 34. h4 {[%clk 0:01:07]}  Bb3 {[%clk 0:00:16]} 35. Nc3 {[%clk 0:01:06]}  Bc2 {[%clk 0:00:15]} 36. Kf4 {[%clk 0:01:04]}  Kf6 {[%clk 0:00:15]} 37. Nd5+ {[%clk 0:01:03]}  Ke6 {[%clk 0:00:15]} 38. Nxb6 {[%clk 0:01:03]}  Kd6 {[%clk 0:00:16]} 39. a5 {[%clk 0:01:03]}  Bd3 {[%clk 0:00:15]} 40. h5 {[%clk 0:01:02]}  Kc6 {[%clk 0:00:15]} 41. g5 {[%clk 0:00:59]}  Kb5 {[%clk 0:00:14]} 42. gxh6 {[%clk 0:00:57]}  gxh6 {[%clk 0:00:14]} 43. Ke5 {[%clk 0:00:52]}  Kxa5 {[%clk 0:00:14]} 44. Nd7 {[%clk 0:00:49]}  Kb5 {[%clk 0:00:10]} 45. Nf6 {[%clk 0:00:46]}  Kc6 {[%clk 0:00:08]} 46. d5+ {[%clk 0:00:45]}  Kc7 {[%clk 0:00:08]} 47. Ke6 {[%clk 0:00:44]}  Kd8 {[%clk 0:00:08]} 48. Kf7 {[%clk 0:00:39]}  Be2 {[%clk 0:00:05]} 49. Kg6 {[%clk 0:00:38]}  Bf3 {[%clk 0:00:05]} 50. Kxh6 {[%clk 0:00:37]}  Ke7 {[%clk 0:00:06]} 51. Kg5 {[%clk 0:00:35]}  Kf7 {[%clk 0:00:04]} 52. h6 {[%clk 0:00:35]} 1-0


[Site "https://www.chess.com"]

[Event "Titled Tuesday Blitz November 01 Late 2022"]
[White "Indjic, Aleksandar"]
[Black "Wieczorek, Oskar"]
[WhiteFideId "911925"]
[BlackFideId "1133950"]
[WhiteElo "2592"]
[BlackElo "2404"]
[Result "1/2-1/2"]
[Round "05"]
[TimeControl "180+1"]
[Date "2022.11.01"]
[WhiteClock "0:00:15"]
[BlackClock "0:00:04"]

1. d4 {[%clk 0:03:00]}  Nf6 {[%clk 0:02:59]} 2. c4 {[%clk 0:03:01]}  c5 {[%clk 0:02:59]} 3. d5 {[%clk 0:03:00]}  g6 {[%clk 0:02:59]} 4. Nc3 {[%clk 0:03:00]}  Bg7 {[%clk 0:03:00]} 5. Nf3 {[%clk 0:03:00]}  d6 {[%clk 0:03:01]} 6. Bg5 {[%clk 0:02:59]}  O-O {[%clk 0:03:01]} 7. e3 {[%clk 0:02:59]}  a6 {[%clk 0:02:59]} 8. a4 {[%clk 0:02:59]}  Bg4 {[%clk 0:02:50]} 9. h3 {[%clk 0:02:54]}  Bxf3 {[%clk 0:02:50]} 10. gxf3 {[%clk 0:02:55]}  Nbd7 {[%clk 0:02:51]} 11. f4 {[%clk 0:02:55]}  Qa5 {[%clk 0:02:51]} 12. Bd3 {[%clk 0:02:41]}  Qb4 {[%clk 0:02:49]} 13. Ra3 {[%clk 0:02:36]}  Nb6 {[%clk 0:02:19]} 14. O-O {[%clk 0:02:27]}  Nxc4 {[%clk 0:01:58]} 15. Rb3 {[%clk 0:02:18]}  Nxb2 {[%clk 0:01:58]} 16. Qc2 {[%clk 0:02:13]}  Nxd3 {[%clk 0:01:59]} 17. Rxb4 {[%clk 0:02:13]}  Nxb4 {[%clk 0:01:59]} 18. Qb3 {[%clk 0:02:13]}  b6 {[%clk 0:01:50]} 19. e4 {[%clk 0:02:10]}  Rfe8 {[%clk 0:01:22]} 20. e5 {[%clk 0:02:05]}  Nh5 {[%clk 0:01:20]} 21. Ne4 {[%clk 0:01:33]}  dxe5 {[%clk 0:00:55]} 22. fxe5 {[%clk 0:01:33]}  Bxe5 {[%clk 0:00:53]} 23. Bd2 {[%clk 0:01:14]}  a5 {[%clk 0:00:36]} 24. Re1 {[%clk 0:01:12]}  Rad8 {[%clk 0:00:29]} 25. Bxb4 {[%clk 0:01:09]}  axb4 {[%clk 0:00:26]} 26. a5 {[%clk 0:01:08]}  bxa5 {[%clk 0:00:20]} 27. Nxc5 {[%clk 0:01:08]}  Bc3 {[%clk 0:00:21]} 28. Rd1 {[%clk 0:00:59]}  Nf4 {[%clk 0:00:20]} 29. Nb7 {[%clk 0:00:58]}  Rd7 {[%clk 0:00:18]} 30. Nxa5 {[%clk 0:00:58]}  Nxh3+ {[%clk 0:00:15]} 31. Kf1 {[%clk 0:00:57]}  Rd6 {[%clk 0:00:14]} 32. Kg2 {[%clk 0:00:47]}  Nf4+ {[%clk 0:00:14]} 33. Kg3 {[%clk 0:00:48]}  Be5 {[%clk 0:00:14]} 34. Kf3 {[%clk 0:00:43]}  Rf6 {[%clk 0:00:14]} 35. Ke4 {[%clk 0:00:43]}  Bc7 {[%clk 0:00:10]} 36. Nc4 {[%clk 0:00:40]}  Nh5 {[%clk 0:00:05]} 37. Qa4 {[%clk 0:00:38]}  Rf4+ {[%clk 0:00:05]} 38. Kd3 {[%clk 0:00:39]}  Rd8 {[%clk 0:00:05]} 39. Ne3 {[%clk 0:00:36]}  Rf6 {[%clk 0:00:05]} 40. Ke2 {[%clk 0:00:33]}  Nf4+ {[%clk 0:00:05]} 41. Kf1 {[%clk 0:00:33]}  Bd6 {[%clk 0:00:06]} 42. Rc1 {[%clk 0:00:27]}  h5 {[%clk 0:00:06]} 43. Qa5 {[%clk 0:00:23]}  Rf8 {[%clk 0:00:06]} 44. Nc4 {[%clk 0:00:20]}  h4 {[%clk 0:00:05]} 45. Nxd6 {[%clk 0:00:20]}  exd6 {[%clk 0:00:05]} 46. Qxb4 {[%clk 0:00:21]}  h3 {[%clk 0:00:05]} 47. Qd4 {[%clk 0:00:20]}  Kg7 {[%clk 0:00:05]} 48. f3 {[%clk 0:00:16]}  Rh8 {[%clk 0:00:04]} 49. Kf2 {[%clk 0:00:16]}  Rh5 {[%clk 0:00:03]} 50. Rh1 {[%clk 0:00:16]}  Rxd5 {[%clk 0:00:03]} 51. Qa1 {[%clk 0:00:16]}  Rd2+ {[%clk 0:00:04]} 52. Ke3 {[%clk 0:00:16]}  Re2+ {[%clk 0:00:04]} 53. Kd4 {[%clk 0:00:16]}  h2 {[%clk 0:00:04]} 54. Kc4 {[%clk 0:00:15]}  Rc2+ {[%clk 0:00:03]} 55. Kb3 {[%clk 0:00:15]}  Re2 {[%clk 0:00:03]} 56. Kc4 {[%clk 0:00:15]}  g5 {[%clk 0:00:04]} 57. Qd4 {[%clk 0:00:14]}  d5+ {[%clk 0:00:04]} 58. Kb3 {[%clk 0:00:14]}  Kg6 {[%clk 0:00:04]} 59. Kb4 {[%clk 0:00:13]}  Rfe6 {[%clk 0:00:02]} 60. Kb5 {[%clk 0:00:13]}  R6e5 {[%clk 0:00:02]} 61. Rxh2 {[%clk 0:00:13]}  Rxh2 {[%clk 0:00:02]} 62. Qxe5 {[%clk 0:00:14]}  Re2 {[%clk 0:00:02]} 63. Qd6+ {[%clk 0:00:14]}  f6 {[%clk 0:00:03]} 64. Qd8 {[%clk 0:00:14]}  Re6 {[%clk 0:00:02]} 65. Qg8+ {[%clk 0:00:14]}  Kh6 {[%clk 0:00:03]} 66. Qh8+ {[%clk 0:00:14]}  Kg6 {[%clk 0:00:03]} 67. Qg8+ {[%clk 0:00:15]}  Kf5 {[%clk 0:00:03]} 68. Kc5 {[%clk 0:00:16]}  Re2 {[%clk 0:00:03]} 69. Qh7+ {[%clk 0:00:16]}  Ke6 {[%clk 0:00:02]} 70. Qg8+ {[%clk 0:00:15]}  Kf5 {[%clk 0:00:03]} 71. Qh7+ {[%clk 0:00:16]}  Ke6 {[%clk 0:00:03]} 72. Qg8+ {[%clk 0:00:15]}  Kf5 {[%clk 0:00:04]} 1/2-1/2


[Site "https://www.chess.com"]

[Event "Titled Tuesday Blitz November 01 Late 2022"]
[White "Ismayil, Malak"]
[Black "Postny, Evgeny"]
[WhiteFideId "13412604"]
[BlackFideId "2804344"]
[WhiteElo "1879"]
[BlackElo "2473"]
[Result "0-1"]
[Round "05"]
[TimeControl "180+1"]
[Date "2022.11.02"]
[WhiteClock "0:00:01"]
[BlackClock "0:00:30"]

1. e4 {[%clk 0:03:00]}  c5 {[%clk 0:02:59]} 2. Nf3 {[%clk 0:03:00]}  d6 {[%clk 0:02:59]} 3. Bb5+ {[%clk 0:03:00]}  Bd7 {[%clk 0:02:58]} 4. Bxd7+ {[%clk 0:03:01]}  Qxd7 {[%clk 0:02:59]} 5. O-O {[%clk 0:03:02]}  g6 {[%clk 0:02:59]} 6. Re1 {[%clk 0:03:02]}  Bg7 {[%clk 0:02:59]} 7. c3 {[%clk 0:03:01]}  Nf6 {[%clk 0:02:59]} 8. d4 {[%clk 0:03:01]}  cxd4 {[%clk 0:03:00]} 9. cxd4 {[%clk 0:03:02]}  O-O {[%clk 0:03:00]} 10. Nc3 {[%clk 0:03:02]}  e6 {[%clk 0:03:00]} 11. h3 {[%clk 0:03:00]}  Nc6 {[%clk 0:03:00]} 12. Bg5 {[%clk 0:02:48]}  Rfe8 {[%clk 0:02:59]} 13. Qa4 {[%clk 0:02:40]}  a6 {[%clk 0:02:50]} 14. Rad1 {[%clk 0:02:02]}  b5 {[%clk 0:02:49]} 15. Qc2 {[%clk 0:02:02]}  Rac8 {[%clk 0:02:41]} 16. Qd2 {[%clk 0:01:28]}  Qb7 {[%clk 0:02:24]} 17. b3 {[%clk 0:01:12]}  Nd7 {[%clk 0:02:13]} 18. Ne2 {[%clk 0:00:55]}  a5 {[%clk 0:02:02]} 19. Bh6 {[%clk 0:00:52]}  Bh8 {[%clk 0:02:02]} 20. d5 {[%clk 0:00:46]}  exd5 {[%clk 0:01:43]} 21. Qxd5 {[%clk 0:00:47]}  Nde5 {[%clk 0:01:35]} 22. Ng5 {[%clk 0:00:41]}  Qe7 {[%clk 0:01:04]} 23. f4 {[%clk 0:00:25]}  Nb4 {[%clk 0:01:00]} 24. Qxd6 {[%clk 0:00:21]}  Qxd6 {[%clk 0:00:57]} 25. Rxd6 {[%clk 0:00:22]}  Ned3 {[%clk 0:00:58]} 26. Rf1 {[%clk 0:00:21]}  Nc5 {[%clk 0:00:39]} 27. Ng3 {[%clk 0:00:16]}  Nxa2 {[%clk 0:00:35]} 28. f5 {[%clk 0:00:10]}  Be5 {[%clk 0:00:35]} 29. fxg6 {[%clk 0:00:05]}  fxg6 {[%clk 0:00:35]} 30. Nf5 {[%clk 0:00:02]}  gxf5 {[%clk 0:00:34]} 31. Rd5 {[%clk 0:00:03]}  Nc3 {[%clk 0:00:29]} 32. Rdd1 {[%clk 0:00:01]}  Nxd1 {[%clk 0:00:28]} 33. Rxd1 {[%clk 0:00:02]}  Nxe4 {[%clk 0:00:29]} 34. Nxe4 {[%clk 0:00:01]}  fxe4 {[%clk 0:00:30]} 0-1


[Site "https://www.chess.com"]

[Event "Titled Tuesday Blitz November 01 Late 2022"]
[White "Itgelt, Khuyagtsogt"]
[Black "Potapova, Margarita"]
[WhiteFideId "4902912"]
[BlackFideId "14126869"]
[WhiteElo "2084"]
[BlackElo "2150"]
[Result "0-1"]
[Round "05"]
[TimeControl "180+1"]
[Date "2022.11.02"]
[WhiteClock "0:00:07"]
[BlackClock "0:00:20"]

1. c4 {[%clk 0:03:00]}  e6 {[%clk 0:02:59]} 2. g3 {[%clk 0:03:01]}  d5 {[%clk 0:03:00]} 3. Bg2 {[%clk 0:03:01]}  Nf6 {[%clk 0:03:00]} 4. Nf3 {[%clk 0:03:02]}  Be7 {[%clk 0:03:01]} 5. O-O {[%clk 0:03:03]}  O-O {[%clk 0:03:02]} 6. b3 {[%clk 0:03:03]}  b6 {[%clk 0:03:02]} 7. Bb2 {[%clk 0:03:04]}  Bb7 {[%clk 0:03:02]} 8. Ne5 {[%clk 0:03:04]}  Nbd7 {[%clk 0:03:02]} 9. d3 {[%clk 0:03:04]}  c5 {[%clk 0:03:02]} 10. Nd2 {[%clk 0:03:04]}  Qc7 {[%clk 0:03:02]} 11. Nxd7 {[%clk 0:03:02]}  Qxd7 {[%clk 0:03:02]} 12. Nf3 {[%clk 0:02:59]}  d4 {[%clk 0:03:02]} 13. b4 {[%clk 0:02:54]}  Qc7 {[%clk 0:02:52]} 14. a4 {[%clk 0:02:35]}  e5 {[%clk 0:02:46]} 15. a5 {[%clk 0:02:32]}  cxb4 {[%clk 0:02:43]} 16. a6 {[%clk 0:02:32]}  Bc6 {[%clk 0:02:43]} 17. e3 {[%clk 0:02:24]}  Bxf3 {[%clk 0:02:31]} 18. Qxf3 {[%clk 0:02:20]}  Rad8 {[%clk 0:02:32]} 19. Qb7 {[%clk 0:02:18]}  Qxb7 {[%clk 0:02:04]} 20. axb7 {[%clk 0:02:16]}  a5 {[%clk 0:02:05]} 21. f4 {[%clk 0:02:05]}  Ng4 {[%clk 0:01:57]} 22. Rfe1 {[%clk 0:01:21]}  Nxe3 {[%clk 0:01:52]} 23. Rxe3 {[%clk 0:00:52]}  dxe3 {[%clk 0:01:49]} 24. Bxe5 {[%clk 0:00:53]}  Bf6 {[%clk 0:01:39]} 25. Bd5 {[%clk 0:00:41]}  Bxe5 {[%clk 0:01:27]} 26. fxe5 {[%clk 0:00:41]}  b3 {[%clk 0:01:02]} 27. Ra3 {[%clk 0:00:38]}  Rxd5 {[%clk 0:00:33]} 28. cxd5 {[%clk 0:00:37]}  Rb8 {[%clk 0:00:31]} 29. Rxb3 {[%clk 0:00:30]}  Rxb7 {[%clk 0:00:32]} 30. Kf1 {[%clk 0:00:16]}  b5 {[%clk 0:00:31]} 31. Ke2 {[%clk 0:00:16]}  b4 {[%clk 0:00:31]} 32. Kxe3 {[%clk 0:00:13]}  a4 {[%clk 0:00:31]} 33. Rb1 {[%clk 0:00:12]}  b3 {[%clk 0:00:30]} 34. Kd2 {[%clk 0:00:07]}  a3 {[%clk 0:00:23]} 35. Kc3 {[%clk 0:00:07]}  a2 {[%clk 0:00:19]} 36. Ra1 {[%clk 0:00:07]}  b2 {[%clk 0:00:19]} 37. Rxa2 {[%clk 0:00:08]}  b1=Q {[%clk 0:00:20]} 38. Ra8+ {[%clk 0:00:07]}  Rb8 {[%clk 0:00:20]} 0-1


[Site "https://www.chess.com"]